Workbook

Sheet 制水分公司
A1: 制水分公司2026-2027年度清洁保洁、绿化养护、除“四害”及灭蚁防治服务采购明细表 （2026.3.1-2027.6.30）
A2: 序号 | B2: 责任 单位 | C2: 场所名称 | D2: 场所地址 | E2: 清洁保洁工程量 | K2: 绿化养护面积（㎡） | L2: 除“四害”及白蚁防治服务（㎡） | M2: 建议配置保洁人数 | N2: 建议配置绿化人数 | O2: 备注
E3: 室内行政办公区面积（含宿舍、食堂面积，㎡） | F3: 室外面积（含停车场、运动场，㎡） | G3: 生产车间地面面积（㎡） | H3: 水面清洁面积（㎡） | I3: 池壁清洁面积（㎡） | J3: 总清洁面积
A4: 1 | B4: 制水 分公司 | C4: 制水分公司 市第二水厂 | D4: 广东省东莞市东城街道周屋围街26号 | E4: 0.00 | F4: 0.00 | G4: 0.00 | H4: 0.00 | I4: 0.00 | J4: =E4+F4+G4+H4+I4 -> 0.00 | K4: 4282.00 | L4: 24000.00 | M4: 0 | N4: 1
A5: 2 | B5: 制水 分公司 | C5: 制水分公司 市第二水厂 （取水泵房） | D5: 广东省东莞市东城街道周屋围街26号厂区对面（东江大道边） | E5: 0.00 | F5: 0.00 | G5: 0.00 | H5: 0.00 | I5: 0.00 | J5: =E5+F5+G5+H5+I5 -> 0.00 | K5: 98.00 | L5: 2635.00 | M5: 0
A6: 3 | B6: 制水 分公司 | C6: 制水分公司 市第三水厂 | D6: 东莞市东城街道东城路东城段421号 | E6: 1513.00 | F6: 12362.00 | G6: 4540.00 | H6: 14823.00 | I6: 5441.00 | J6: 38679.00 | K6: 19108.00 | L6: 45218.00 | M6: 7 | N6: 6
A7: 4 | B7: 制水 分公司 | C7: 制水分公司市 第三水厂 （取水泵房） | D7: 第三水厂取水泵房位于东莞市东江南支流东城下桥段 | E7: 0.00 | F7: 0.00 | G7: 1410.00 | H7: 0.00 | I7: 0.00 | J7: 1410.00 | K7: 130.00 | L7: 1588.00 | M7: 0 | N7: 0
A8: 5 | B8: 制水 分公司 | C8: 制水分公司市 第三水厂 （大岭山加压站） | D8: 广东省东莞市大岭山镇莞长路大岭山段592号 | E8: 0.00 | F8: 0.00 | G8: 0.00 | H8: 0.00 | I8: 0.00 | J8: 0.00 | K8: 6301.16 | L8: 9126.00 | M8: 0 | N8: 0
A9: 6 | B9: 制水 分公司 | C9: 制水分公司 市第四水厂 | D9: 东莞市高埗镇高埗沿江南路150号 | E9: 5770.00 | F9: 0.00 | G9: 7193.00 | H9: 5792.00 | I9: 7834.00 | J9: 26589.00 | K9: 81455.00 | L9: 108609.00 | M9: 4 | N9: 8
A10: 7 | B10: 制水 分公司 | C10: 制水分公司 市第四水厂 （三期预留地） | D10: 东莞市高埗镇高埗沿江南路150号 | E10: 0.00 | F10: 0.00 | G10: 0.00 | H10: 0.00 | I10: 0.00 | J10: 0.00 | K10: 0.00 | L10: 0.00 | M10: 0 | N10: 0
A11: 8 | B11: 制水 分公司 | C11: 制水分公司 市第四水厂 （取水头部） | D11: 东莞市石碣镇脉洲工业区水南码头附近 | E11: 0.00 | F11: 0.00 | G11: 0.00 | H11: 0.00 | I11: 0.00 | J11: 0.00 | K11: 2800.00 | L11: 2800.00 | M11: 0 | N11: 0
A12: 9 | B12: 制水 分公司 | C12: 制水分公司 市第五水厂 | D12: 东莞市企石镇杨屋新兴路33号 | E12: 1800.00 | F12: 0.00 | G12: 5700.00 | H12: 4200.00 | I12: 5500.00 | J12: 17200.00 | K12: 39200.00 | L12: 48607.00 | M12: 6 | N12: 5
A13: 10 | B13: 制水 分公司 | C13: 制水分公司 市第五水厂 （取水泵房） | D13: 东莞市企石镇东江大堤黄大仙公园附近 | E13: 0.00 | F13: 0.00 | G13: 0.00 | H13: 0.00 | I13: 0.00 | J13: 0.00 | K13: 10616.00 | L13: 15641.00
A14: 11 | B14: 制水 分公司 | C14: 制水分公司 市第五水厂 （东坑加压站） | D14: 东莞市东坑镇中兴大道北92号 | E14: 0.00 | F14: 0.00 | G14: 0.00 | H14: 0.00 | I14: 0.00 | J14: 0.00 | K14: 298.00 | L14: 1609.00 | M14: 0 | N14: 0
A15: 12 | B15: 制水 分公司 | C15: 制水分公司 市第五水厂 （松山湖加压站） | D15: 东莞市松山湖工业园新城路（华为南方工厂D区E2A旁边） | E15: 0.00 | F15: 0.00 | G15: 0.00 | H15: 0.00 | I15: 0.00 | J15: 0.00 | K15: 883.00 | L15: 1315.00 | M15: 0 | N15: 0
A16: 13 | B16: 制水 分公司 | C16: 制水分公司 市第六水厂 | D16: 东莞市东城街道莞龙路东城段21号 | E16: 5213.67 | F16: =850+1908 -> 2758.00 | G16: 4411.37 | H16: 3853.05 | I16: 2092.30 | J16: 18328.39 | K16: 106967.00 | L16: 158157.23 | M16: 6 | N16: 9
A17: 14 | B17: 制水 分公司 | C17: 制水分公司 东城水厂 | D17: 东莞市东城街道下桥银岭街9号 | E17: 2280 | F17: 7000.00 | G17: 3800.00 | H17: 672.00 | I17: 2016.00 | J17: 15768.00 | K17: 29586.00 | L17: 50417.00 | M17: 4 | N17: 4 | O17: 4名保洁人员其中1名为男性，是需做滤池池壁清洁工作；
A18: 15 | B18: 制水 分公司 | C18: 制水分公司 东城水厂 （取水泵房） | D18: 东江大道东城段29号取水泵房公共区域 | E18: 40.00 | F18: 1450.00 | G18: 1120.00 | H18: 0.00 | I18: 0.00 | J18: 2610.00 | K18: 0.00 | L18: 2000.00 | M18: 0 | N18: 0
A19: 16 | B19: 制水 分公司 | C19: 制水分公司 万江水厂 | D19: 东莞市万江街道万龙路191号 | E19: 0.00 | F19: 11040.00 | G19: 2548.00 | H19: 5813.00 | I19: 8600.00 | J19: 28001.00 | K19: 14084.00 | L19: 30952.00 | M19: 5 | N19: 1
A20: 17 | B20: 制水 分公司 | C20: 制水分公司 高埗水厂 | D20: 东莞市高埗镇沿江南路48号 | E20: 0.00 | F20: 5000.00 | G20: 1800.00 | H20: 6400 | I20: 8900.00 | J20: 22100.00 | K20: 4800 | L20: 25103.00 | M20: 5 | N20: 0
A21: 18 | B21: 制水 分公司 | C21: 制水分公司 石碣水厂 | D21: 东莞市石碣镇同德路2号101室（石碣水厂） | E21: 0.00 | F21: 5260.00 | G21: 9370.00 | H21: 2172.00 | I21: 3480.00 | J21: 20282.00 | K21: 5250.00 | L21: 15000.00 | M21: 5 | N21: 1
A22: 19 | B22: 制水 分公司 | C22: 制水分公司 石碣水厂 （取水泵房） | D22: 东莞市石碣镇石碣滨江东路378号 | E22: 0.00 | F22: 100.00 | G22: 1500.00 | H22: 100.00 | I22: 0.00 | J22: 1700.00 | K22: 60.00 | L22: 1000.00 | M22: 0 | N22: 0
A23: 20 | B23: 制水 分公司 | C23: 制水分公司 石龙西湖水厂 | D23: 东莞市石龙镇西湖东路111号 | E23: 1216.21 | F23: 2884.32 | G23: 1166.06 | H23: 1033.58 | I23: 3176.00 | J23: 9476.17 | K23: 16654.38 | L23: 27183.84 | M23: 3 | N23: 2
A24: 21 | B24: 制水 分公司 | C24: 制水分公司 石龙黄洲水厂 | D24: 东莞市石龙镇石龙水源路6号 | E24: 1294.27 | F24: 5043.00 | G24: 1458.60 | H24: 6741.00 | I24: 9894.64 | J24: 24431.51 | K24: 7443.60 | L24: 20122.91 | M24: 3 | N24: 2
A25: 22 | B25: 制水 分公司 | C25: 制水分公司 石排水厂 | D25: 东莞市石排镇东江大道石排段52号 | E25: 0.00 | F25: 6176.00 | G25: 2575.00 | H25: 1200.00 | I25: 5500.00 | J25: 15451.00 | K25: 16000.00 | L25: 16000.00 | M25: 4 | N25: 2
A26: 23 | B26: 制水 分公司 | C26: 制水分公司 石排水厂 （新取水泵房） | D26: 东江大道石排田寮段取水泵房（新站） | E26: 0.00 | F26: 0.00 | G26: 800.00 | H26: 600.00 | I26: 0.00 | J26: 1400.00 | K26: 2500.00 | L26: 2500.00
A27: 24 | B27: 制水 分公司 | C27: 制水分公司 石排水厂 （旧取水泵房） | D27: 东江大道石排田寮段取水泵房（旧站） | E27: 0.00 | F27: 0.00 | G27: 150.00 | H27: 0.00 | I27: 0.00 | J27: 150.00 | K27: 606.00 | L27: 606.00
A28: 25 | B28: 制水 分公司 | C28: 制水分公司 茶山水厂 | D28: 东江大道茶山段1号 | E28: 0.00 | F28: 0.00 | G28: 0.00 | H28: 0.00 | I28: 0.00 | J28: 0.00 | K28: 0.00 | L28: 0.00 | M28: 0 | N28: 0 | O28: /
A29: 26 | B29: 制水 分公司 | C29: 制水分公司 大岭山长湖水厂 | D29: 东莞市大岭山镇大岭山大道592号 | E29: 1897.00 | F29: 7500.00 | G29: 1452.00 | H29: 0.00 | I29: 0.00 | J29: 10849.00 | K29: 12580.00 | L29: 0.00 | M29: 1 | N29: 1 | O29: /
A30: 27 | B30: 制水 分公司 | C30: 制水分公司 大岭山金鸡咀水厂 | D30: 东莞市大岭山镇大岭山金鸡咀路41号 | E30: 120.00 | F30: 3000.00 | G30: 550.00 | H30: 0.00 | I30: 0.00 | J30: 3670.00 | K30: 5964.00 | L30: 0.00 | M30: 1 | N30: 1 | O30: /
A31: 28 | B31: 制水 分公司 | C31: 制水分公司 中堂水厂 | D31: 东莞市中堂镇滨江大道3号 | E31: 0.00 | F31: 0.00 | G31: 0.00 | H31: 0.00 | I31: 0.00 | J31: 0.00 | K31: 0.00 | L31: 27983.00
A32: 29 | B32: 制水 分公司 | C32: 制水分公司 中堂水厂 （取水泵房） | D32: 东莞市中堂镇潢涌村洲头 | E32: 0.00 | F32: 0.00 | G32: 0.00 | H32: 0.00 | I32: 0.00 | J32: 0.00 | K32: 0.00 | L32: 10404.00 | M32: 0 | N32: 0 | O32: 自有1名清洁工、2名绿化勤杂工，1名清洁工2027年3月1日退休，后续需增1名外聘人员。
A33: 30 | B33: 制水 分公司 | C33: 制水分公司 塘厦中心水厂 | D33: 东莞市塘厦镇东深一路8号 | E33: 272.00 | F33: 7202.00 | G33: 1167.00 | H33: 1836.00 | I33: 4558.00 | J33: 15035.00 | K33: 9460.62 | L33: 14987.19 | M33: 4 | N33: 2
A34: 31 | B34: 制水 分公司 | C34: 制水分公司 塘厦凤凰水厂 | D34: 东莞市塘厦镇凤清路65号 | E34: 0 | F34: 3500.00 | G34: 1954.00 | H34: 9652 | I34: 5734 | J34: 20840.00 | K34: 31413 | L34: 59811.8 | M34: 4 | N34: 3
A35: 32 | B35: 制水 分公司 | C35: 制水分公司 塘厦虾公岩水厂 | D35: 东莞市塘厦镇大坪四黎南路170号-1 | E35: 0.00 | F35: 1200.00 | G35: 1118.00 | H35: 3158.00 | I35: 2550.00 | J35: 8026.00 | K35: 3515.00 | L35: 16963.10 | M35: 3 | N35: 1 | O35: 自有1名清洁工2027年8月31日退休，2027年9月1日起需增加外聘保洁量（增加生产车间地面面积986m3，增加道路面积4000m3），增加1名清洁工。
A36: 33 | B36: 制水 分公司 | C36: 制水分公司 塘厦牛眠埔水厂 | D36: 东莞市塘厦镇牛眠埔新围路28号 | E36: 726.00 | F36: 11750.00 | G36: 1156.00 | H36: 2180.00 | I36: 3364.00 | J36: 19176.00 | K36: 7350.11 | L36: 19804.80 | M36: 4 | N36: 2
A37: 34 | B37: 制水 分公司 | C37: 制水分公司 凤岗第一水厂 | D37: 凤岗镇金凤路花果山二巷13号 | E37: 60.00 | F37: 4025.00 | G37: 250.00 | H37: 1003.00 | I37: 2410.00 | J37: 7748.00 | K37: 7866.00 | L37: 8400.00 | M37: 3 | N37: 2
A38: 35 | B38: 制水 分公司 | C38: 制水分公司 凤岗第一水厂 （取水泵房） | D38: 凤岗镇凤泉西路 | E38: 107.00 | F38: 2043.00 | G38: 650.00 | H38: 0.00 | I38: 0.00 | J38: 2800.00 | K38: 134.00 | L38: 2800.00
A39: 36 | B39: 制水 分公司 | C39: 制水分公司 凤岗第二水厂 | D39: 凤岗镇沙岭抽水站路8号 | E39: 1470.00 | F39: 9000.00 | G39: 3100.00 | H39: 5268 | I39: 1926 | J39: 20764.00 | K39: 12402.5 | L39: 29433.37 | M39: 4 | N39: 2
A40: 37 | B40: 制水 分公司 | C40: 制水分公司 樟木头簕竹排水厂 （取水泵房） | D40: 东莞市霖海木业有限公司西南（官仓路） | E40: 0.00 | F40: 0.00 | G40: 1280.00 | H40: 0.00 | I40: 0.00 | J40: 1280.00 | K40: 300.00 | L40: 500.00 | M40: 0 | N40: 1
A41: 38 | B41: 制水 分公司 | C41: 制水分公司 樟木头簕竹排水厂 | D41: 东莞市樟木头金河社区滨河路45号 | E41: 0.00 | F41: 20000.00 | G41: 3800.00 | H41: 4160.00 | I41: 1150.00 | J41: 29110.00 | K41: 10000.00 | L41: 13300.00 | M41: 1 | N41: 5
A42: 39 | B42: 制水 分公司 | C42: 制水分公司 黄江水厂 | D42: 东莞市黄江镇强健街2号 | E42: 1885.00 | F42: 6006.00 | G42: 2018.00 | H42: 2120.00 | I42: 1399.00 | J42: 13428.00 | K42: 12000.00 | L42: 11641.00 | M42: 3 | N42: 2
A43: 40 | B43: 制水 分公司 | C43: 制水分公司 谢岗第三水厂 | D43: 东莞市谢岗镇曹乐工业一路15号101室 | E43: 80 | F43: 8500 | G43: 3500 | H43: 5000 | I43: 4000 | J43: 21080.00 | K43: 22000.00 | L43: 43000.00 | M43: 2 | N43: 3
A44: 41 | B44: 制水 分公司 | C44: 制水分公司 谢岗第二水厂 | D44: 谢岗镇南面石鼓水库路22号 | E44: 620.00 | F44: 1400.00 | G44: 120.00 | H44: 1600.00 | I44: 0.00 | J44: 3740.00 | K44: 3000.00 | L44: 5140.00 | M44: 1 | N44: 1
A45: 42 | B45: 制水 分公司 | C45: 制水分公司 横沥水厂 | D45: 东莞市横沥镇东环路260号 | E45: 0.00 | F45: 9620.00 | G45: 8088.30 | H45: 6655.00 | I45: 3500.00 | J45: 27863.30 | K45: 18041.00 | L45: 36301.71 | M45: 3 | N45: 2
A46: 43 | B46: 制水 分公司 | C46: 制水分公司 企石水厂 | D46: 东莞市企石镇黄大仙路56号 | E46: 0.00 | F46: 9613.06 | G46: 4763.33 | H46: 3920.27 | I46: 2523.90 | J46: 20820.56 | K46: 19500.00 | L46: 52477.24 | M46: 2 | N46: 2 | O46: 自有1名清洁工2025年12月30日退休，2026年1月1日起需增加外聘保洁量，增加1名清洁工
A47: 44 | B47: 制水 分公司 | C47: 制水分公司 企石水厂 （取水泵房） | D47: 东莞市企石镇东江大堤黄大仙公园附近 | E47: 0.00 | F47: 0.00 | G47: 382.16 | H47: 1000.00 | I47: 0.00 | J47: 1382.16 | K47: 0.00 | L47: 736.00 | M47: 0 | N47: 0
A48: 45 | B48: 制水 分公司 | C48: 制水分公司 桥头第二水厂 | D48: 桥头镇迳联村中兴路403号 | E48: 770.00 | F48: 2640.00 | G48: 1477.00 | H48: 1057.00 | I48: 5730.00 | J48: 11674.00 | K48: 8858.00 | L48: 15414.30 | M48: 3 | N48: 1
A49: 46 | B49: 制水 分公司 | C49: 制水分公司 桥头第三水厂 | D49: 桥头镇东江村岭仔巷41号 | E49: 0.00 | F49: 0.00 | G49: 0.00 | H49: 2000.00 | I49: 5500.00 | J49: 7500.00 | K49: 23120.00 | L49: 51484.70 | M49: 2 | N49: 2
A50: 47 | B50: 制水 分公司 | C50: 制水分公司 松山湖水厂 | D50: 东莞市环湖路与南山路交叉口西北 320米 | E50: 8714.36 | F50: 33940.456 | G50: 28246.176 | H50: 25588 | I50: 50339.04 | J50: 146828.03 | K50: 49466.00 | L50: 65370 | M50: 25 | N50: 5
A51: 48 | B51: 制水 分公司 | C51: 制水分公司 芦花坑水厂 | D51: 东莞市虎门镇居岐路99号 | E51: 0.00 | F51: 6440.00 | G51: 48460.00 | H51: 33960.00 | I51: 10845.00 | J51: 99705.00 | K51: 0.00 | L51: 83500.00 | M51: 20 | N51: 0 | O51: 绿化部分为工程质保期限内，养护等由工程总承包单位负责
B52: 合计 | E52: =SUM(E4:E51) -> 35848.51 | F52: =SUM(F4:F51) -> 206452.84 | G52: =SUM(G4:G51) -> 163074.00 | H52: =SUM(H4:H51) -> 163556.90 | I52: =SUM(I4:I51) -> 167962.88 | J52: 736895.12 | K52: =SUM(K4:K51) -> 626092.37 | L52: =SUM(L4:L51) -> 1179642.19 | M52: =SUM(M4:M51) -> 138 | N52: =SUM(N4:N51) -> 79
A53: 注：上述地点、面积均为暂定，招标人有权根据实际经营情况对服务地点及服务面积进行调整，并不承担服务单位的任何损失。

Sheet 属地分公司
A1: 属地分公司2026-2027年度清洁保洁、除“四害”及灭蚁防治服务采购明细表 （2026.3.1-2027.6.30）
A2: 序号 | B2: 责任 单位 | C2: 场所名称 | D2: 场所地址 | E2: 清洁保洁工程量 | H2: 除“四害”及白蚁防治服务（㎡） | I2: 绿化养护面积 （仅限独立办公区且绿植较多的分公司；与水厂同一地点办公的分公司，绿化由水厂填报） | J2: 建议配置保洁人数 | K2: 建议配置绿化人数 | L2: 经办人及联系方式 | M2: 审核人及联系方式
E3: 室内行政办公区面积（含宿舍、食堂面积，㎡） | F3: 室外面积（含道路、停车场、运动场，㎡） | G3: 总保洁面积
A4: 1 | B4: 莞南 分公司 | C4: 莞城（南城） 分公司 办公楼 | D4: 东莞市莞城街道元岭路莞城段76号 | E4: 12525.82 | F4: 1940.00 | G4: =E4+F4 -> 14465.82 | H4: 9258.56 | J4: 5 | K4: 0 | L4: 陈海欣13924354986 | M4: 邓王标13537163838
A5: 2 | B5: 东城 分公司 | C5: 东城分公司 办公楼 | D5: 东莞市东城街道下桥银岭街9号 | E5: 5700.00 | F5: 3500.00 | G5: =E5+F5 -> 9200.00 | H5: 19600.00 | J5: 4 | K5: 0 | L5: 袁柱良13929477088 | M5: 钱敬波13712028838
A6: 3 | B6: 万江 分公司 | C6: 万江分公司 办公楼 | D6: 东莞市万江街道万龙路191号 | E6: 5039.05 | F6: 0.00 | G6: 5039.05 | H6: 96.00 | J6: 2 | K6: 0 | L6: 何汉杭13751364030 | M6: 张丽玲15015368167
A7: 4 | B7: 松山湖分公司 | C7: 松山湖分公司 办公楼 | D7: 东莞市松山湖园区礼宾路6号1栋3单元 | E7: 647.00 | F7: 0.00 | G7: 647.00 | H7: 647.00 | J7: 1 | K7: 0 | L7: 苏赐昌13622629319 | M7: 张玉敏13549212482
A8: 5 | B8: 高埗 分公司 | C8: 高埗分公司 新厂区办公楼 | D8: 东莞市高埗镇沿江南路48号 | E8: 1703.00 | F8: 0.00 | G8: 1703.00 | H8: 0.00 | J8: 1 | K8: 0 | L8: 赵仲豪13650260263 | M8: 李锦标15999741655
A9: 6 | B9: 石碣 分公司 | C9: 石碣分公司 办公楼 | D9: 东莞市石碣镇同德路2号101室（办公楼） | E9: 3213.57 | F9: 0.00 | G9: 3213.57 | H9: 3213.57 | J9: 1 | K9: 0 | L9: 袁智光13532392178 | M9: 骆世权13794818662
A10: 7 | B10: 石龙 分公司 | C10: 石龙分公司办公楼 | D10: 东莞市石龙镇黄洲新城区水源路6号 | E10: 1304.00 | F10: 2264.00 | G10: 3568.00 | H10: 3568.00 | J10: 1 | K10: 0 | L10: 赖慧恩13713323312 | M10: 钟浩泉18938223378
A11: 8 | B11: 石龙 分公司 | C11: 石龙分公司管网部办公楼、仓库 | D11: 东莞市石龙镇西湖东路111号 | E11: 691.00 | F11: 50.00 | G11: 741.00 | H11: 741.00 | L11: 赖慧恩13713323312 | M11: 钟浩泉18938223378
A12: 9 | B12: 石排 分公司 | C12: 石排分公司 办公楼 | D12: 东莞市石排镇东江大道石排段52号 | E12: 1494.00 | F12: 150.00 | G12: 1644.00 | H12: 0.00 | J12: 1 | K12: 0 | L12: 钟晓斌13827226718 | M12: 李保灵18926833332
A13: 10 | B13: 茶山 分公司 | C13: 茶山分公司 办公区 | D13: 东莞市茶山镇东岳路108号 | E13: 5300.00 | F13: 0.00 | G13: 5300.00 | H13: 7628.00 | J13: 2 | K13: 0 | L13: 袁梓茵13360470862 | M13: 卢淑婷13688922638
A14: 11 | B14: 寮步 分公司 | C14: 寮步分公司 办公楼 | D14: 东莞市寮步镇河滨西路1号 | E14: 5409 | F14: 3905 | G14: 9314.00 | H14: 6000.00 | J14: 3 | K14: 0 | L14: 叶咏珊18002718082 | M14: 温雪婷13712125552
A15: 12 | B15: 寮步 分公司 | C15: 寮步分公司 加压站 | D15: 莞樟路寮步段426号 | E15: 80.00 | F15: 0.00 | G15: 80.00 | H15: 0.00 | J15: 0 | K15: 0 | L15: 叶咏珊18002718082 | M15: 温雪婷13712125552
A16: 13 | B16: 大朗 分公司 | C16: 大朗分公司 （综合楼） | D16: 东莞市大朗镇大朗升平北路15号（自来水公司综合楼） | E16: 0.00 | F16: 0.00 | G16: 0.00 | H16: 2500.00 | J16: 0 | K16: 0 | L16: 刘汉标13532696377 | M16: 吴葵友13712903233
A17: 14 | B17: 大朗 分公司 | C17: 大朗分公司 (松木山水厂) | D17: 东莞市松山湖滨湖路6号（松木山水厂） | E17: 0.00 | F17: 0.00 | G17: 0.00 | H17: 21539.50 | J17: 0 | K17: 0 | L17: 刘汉标13532696377 | M17: 吴葵友13712903233
A18: 15 | B18: 大岭山分公司 | C18: 大岭山分公司 本部办公楼 | D18: 东莞市大岭山镇西正路77号102室 | E18: 0.00 | F18: 0.00 | G18: 0.00 | H18: 1847.15 | J18: 0 | K18: 0 | L18: 邓淑媚13580853330 | M18: 罗桂嫦13549257708
A19: 16 | B19: 望牛墩分公司 | C19: 望牛墩分公司 办公楼 | D19: 东莞市望牛墩西富路1号102室 | E19: 700.00 | F19: 4100.00 | G19: 4800.00 | H19: 7000.00 | I19: 2200.00 | J19: 1 | K19: 1 | L19: 庾瑞兴13790584835 | M19: 陈嘉敏13728162968
A20: 17 | B20: 望牛墩分公司 | C20: 望牛墩分公司 收费营业厅 | D20: 东莞市望牛墩振兴路8号 | E20: 270.00 | F20: 0.00 | G20: 270.00 | H20: 270.00 | K20: 0 | L20: 庾瑞兴13790584835 | M20: 陈嘉敏13728162968
A21: 18 | B21: 洪梅 分公司 | C21: 洪梅分公司 办公楼 | D21: 东莞市洪梅镇洪梅大道23号 | E21: 983.64 | F21: 1600.00 | G21: 2583.64 | H21: 2583.64 | J21: 1 | K21: 0 | L21: 吴秀芬13652644108 | M21: 黄少燕13728382005
A22: 19 | B22: 麻涌 分公司 | C22: 麻涌分公司 办公楼 | D22: 东莞市麻涌镇麻四金宝路2号101室 | E22: 1025.67 | F22: 3708.33 | G22: 4734.00 | H22: 4734.00 | J22: 1 | K22: 0 | L22: 杨炯光13416628022 | M22: 黄永泉13809631629
A23: 20 | B23: 道滘 分公司 | C23: 道滘分公司 办公楼 | D23: 东莞市道滘镇道滘滨江西路121号101室 | E23: 1484.80 | F23: 0.00 | G23: 1484.80 | H23: 1485.00 | J23: 1 | K23: 0 | L23: 赖瑞璋13686089690 | M23: 赖瑞璋13686089690
A24: 21 | B24: 中堂 分公司 | C24: 中堂分公司 办公楼 | D24: 东莞市中堂镇滨江大道3号 | E24: 4852.00 | F24: 0.00 | G24: 4852.00 | H24: 0.00 | J24: 1 | K24: 0 | L24: 袁敬钦13790181980 | M24: 藏丽君13580996841
A25: 22 | B25: 中堂 分公司 | C25: 中堂分公司 江南二次加压房 | D25: 东莞市中堂镇江南沿江路2号旁边 | E25: 0.00 | F25: 0.00 | G25: 0.00 | H25: 300.00 | J25: 0 | K25: 0 | L25: 袁敬钦13790181980 | M25: 藏丽君13580996841
A26: 23 | B26: 沙田 分公司 | C26: 沙田分公司 本部办公楼 | D26: 东莞市沙田镇福禄沙洲仔路1号 | E26: 502.00 | F26: 600.00 | G26: 1102.00 | H26: 1102.00 | J26: 1 | K26: 0 | L26: 郭锦洪13650126450 | M26: 何启明13827272778
A27: 24 | B27: 厚街 分公司 | C27: 厚街分公司 本部办公楼 | D27: 厚街镇环莞快速厚街段55号 | E27: 1900.00 | F27: 0.00 | G27: 1900.00 | H27: 1900.00 | J27: 1 | K27: 0 | L27: 谢晓敏13728298861 | M27: 王璀萃13713369090
A28: 25 | B28: 厚街 分公司 | C28: 厚街分公司 东部加压站 | D28: 厚街镇湖景大道1号 | E28: 200.00 | F28: 1400.00 | G28: 1600.00 | H28: 1600.00 | I28: 1600.00 | J28: 1 | K28: 1 | L28: 谢晓敏13728298861 | M28: 王璀萃13713369090
A29: 26 | B29: 长安 分公司 | C29: 长安分公司 （总部办公点） | D29: 广东省东莞市长安镇莞长路长安段220号 | E29: 0 | F29: 0 | G29: 0.00 | H29: 24739.24 | J29: 0 | K29: 0 | L29: 张骏斌13790321179 | M29: 谭涛13829256685
A30: 27 | B30: 塘厦 分公司 | C30: 塘厦分公司 本部办公楼 | D30: 东莞市塘厦镇东深一路8号 | E30: 5605.60 | F30: 12846.38 | G30: 18451.98 | H30: 10234.22 | J30: 0 | K30: 0 | L30: 罗志强13560824195 | M30: 殷伟锋13724428288
A31: 28 | B31: 塘厦 分公司 | C31: 塘厦分公司 仓库 | D31: 东莞市塘厦镇东深一路8号 | E31: 319.00 | F31: 0.00 | G31: 319.00 | H31: 319.00 | J31: 0 | K31: 0 | L31: 罗志强13560824195 | M31: 殷伟锋13724428288
A32: 29 | B32: 凤岗 分公司 | C32: 凤岗分公司 办公楼 | D32: 凤岗镇金凤路花果山二巷13号 | E32: 1936.74 | F32: 0.00 | G32: 1936.74 | H32: 0.00 | J32: 1 | K32: 0 | L32: 黄永枝13729914111 | M32: 何瑞雯13925504149
A33: 30 | B33: 凤岗 分公司 | C33: 凤岗分公司 供水服务中心 | D33: 凤岗镇永盛大街永佳南路7-6号二楼 | E33: 531.64 | F33: 0.00 | G33: 531.64 | H33: 0.00 | J33: 1 | K33: 0 | L33: 黄永枝13729914111 | M33: 何瑞雯13925504149
A34: 31 | B34: 樟木头分公司 | C34: 樟木头分公司 办公楼 | D34: 东莞市樟木头镇金河社区滨河路45号 | E34: 1050.00 | F34: 0.00 | G34: 1050.00 | H34: 0.00 | J34: 1 | K34: 0 | L34: 邱达成17688634734 | M34: 罗焕新13712903610
A35: 32 | B35: 樟木头分公司 | C35: 樟木头分公司管网部、客服部办公楼、仓库 | D35: 东莞市樟木头镇官仓社区沿河路3号 | E35: 600.00 | F35: 1420.00 | G35: 2020.00 | H35: 1420.00 | K35: 0 | L35: 邱达成17688634734 | M35: 罗焕新13712903610
A36: 33 | B36: 黄江 分公司 | C36: 黄江分公司 办公楼 | D36: 东莞市黄江镇强健街2号 | E36: 7778.00 | F36: 3492.00 | G36: 11270.00 | H36: 0.00 | J36: 2 | K36: 0 | L36: 陈雪瑜13751221490 | M36: 欧小敏13809820386
A37: 34 | B37: 谢岗 分公司 | C37: 谢岗分公司 办公楼 | D37: 东莞市谢岗镇曹乐工业一路15号101室 | E37: 1128.00 | F37: 0.00 | G37: 1128.00 | H37: 3843.00 | J37: 1 | K37: 0 | L37: 赵贺轩13528631465 | M37: 张建良18922994898
A38: 35 | B38: 东坑 分公司 | C38: 东坑分公司 办公楼 | D38: 东莞市东坑镇角祥路横沥东坑污水处理厂二期4楼 | E38: 787.05 | F38: 0.00 | G38: 787.05 | H38: 0.00 | J38: 1 | K38: 0 | L38: 谢奕鹏13763189505 | M38: 谢国成18926822433
A39: 36 | B39: 横沥 分公司 | C39: 横沥分公司 办公楼 | D39: 东莞市横沥镇东环路260号 | E39: 5678.00 | F39: 0.00 | G39: 5678.00 | H39: 5678.00 | J39: 2 | K39: 0 | L39: 香健聪83378939 | M39: 朱镜辉13712512883
A40: 37 | B40: 企石 分公司 | C40: 企石分公司 办公楼 | D40: 东莞市企石镇黄大仙路56号 | E40: 3367.11 | F40: 4464.00 | G40: 7831.11 | H40: 3367.11 | J40: 2 | K40: 0 | L40: 王华顺15899667279 | M40: 姚浩伟13480060639
A41: 38 | B41: 桥头 分公司 | C41: 桥头分公司 办公楼 | D41: 东莞市桥头镇桥光大道405号 | E41: 746.64 | F41: 0.00 | G41: 746.64 | H41: 746.64 | J41: 1 | K41: 0 | L41: 罗杰聪15817705925 | M41: 莫锦旺15899660004
A42: 39 | B42: 黄江分公司 | C42: 黄江分公司 （梅塘加压泵站） | D42: 东莞市黄江镇田心村嘉宾路 | E42: 0.00 | F42: 0.00 | G42: 0.00 | H42: 205.35 | J42: 0 | K42: 0 | L42: 黄仲仪13580796233 | M42: 欧小敏13809820386
A43: 40 | B43: 黄江分公司 | C43: 黄江分公司 （长龙加压泵站） | D43: 东莞市黄江镇长龙村黄书角 | E43: 0.00 | F43: 0.00 | G43: 0.00 | H43: 42.16 | J43: 0 | K43: 0 | L43: 黄仲仪13580796233 | M43: 欧小敏13809820386
A44: 41 | B44: 虎门分公司 | C44: 芦花坑水厂 | D44: 虎门镇居歧路99号 | E44: 2932.00 | F44: 7740.00 | G44: 10672.00 | H44: 0.00 | J44: 2 | K44: 0 | L44: 张孝勇13712394853 | M44: 阮韵琪13713388927
B45: 合计 | E45: =SUM(E4:E44) -> 87484.33 | F45: =SUM(F4:F44) -> 53179.71 | G45: =SUM(G4:G44) -> 140664.04 | H45: =SUM(H4:H44) -> 148208.14 | I45: =I19+I28 -> 3800.00 | J45: =SUM(J4:J44) -> 43 | K45: =SUM(K4:K44) -> 2
A46: 注：上述地点、面积均为暂定，招标人有权根据实际经营情况对服务地点及服务面积进行调整，并不承担服务单位的任何损失。

Sheet 属地分公司主要服务内容
A1: 项目特征清单表
A2: 项目编号 | B2: 项目名称 | C2: 项目特征描述
A3: 01 | B3: 室内行政办公区（含宿舍、食堂） | C3: 1.包括但不限于以下内容： （1）所有办公区域（含营业厅）的清洁保洁。如办公区域、会议室、接待室、饭堂、茶水间、洗手间、公共区域、楼梯、电梯、顶层天花板的清洁保洁工作。 （2）生活区域的清洁保洁。员工生活楼、宿舍楼、健身活动室及相关公共区域的保洁工作。 （3）生活垃圾的清除，包括办公场所、值班室、宿舍、厨房等产生的垃圾，生活垃圾必须每天清除运送至指定地点（具体数量及放置位置与使用部门协定）。
A4: 02 | B4: 室外道路（含运动场、门口广场、喷水池） | C4: 1.包括但不限于以下内容： （1）道路、运动场的清扫冲洗。 （2）停车场及车库的卫生保洁。 2.服务要求： （1）路面（含运动场、广场）每周三次，保持路面洁净，无垃圾、积水、污迹。门口广场、喷水池（如有）、运动场地面每周清洗一次。 (2)室外场地、道路、停车场等保持清洁无积尘、纸屑、烟头等杂物。 (3)路灯、牌匾、宣传栏、标识标牌美观、整洁，无乱贴无污渍现象。
A5: 03 | B5: 除“四害”及白蚁防治 | C5: 1.除“四害”及白蚁防治服务包括但不限于以下内容： （1）高峰期5月至10月份（共6个月）每月不低于2次，其他月份每月不低于1次对行政区域和生产区域实施喷洒式灭蚊子、苍蝇、蟑螂工作，一般定在星期五17：30后实施（疫情期间或特殊情况下应服从公司要求增加服务次数）。同时中标人应安排周六在综合办公楼实施除“四害”工作，以免影响公司员工星期一工作。 （2）老鼠灭治工作开始后，前3个月每月施药2次，待灭鼠成效巩固之后每月施药一次（高峰期每月施药两次），及时清理死鼠。 （3）每半月至少1次对厂区所有区域进行白蚁检查，如有发现立即处理，期间若白蚁活动次数频繁或不达标的情况下，维护单位应配合我司作出相应调配进行施工服务，并无条件进行灭治，直至达标为止。 （4）害虫繁殖高峰期要加强消杀，保证效果。 （5）特殊情况下（例如“登革热”爆发期），应招标人要求加强除“四害”力度，保证效果。 （6）服务范围内收集动物尸体工作（含老鼠、蟑螂等收集清理工作），并将尸体无害化处理。

Sheet 制水分公司主要服务内容
A1: 项目特征清单表
A2: 项目编号 | B2: 项目名称 | C2: 项目特征描述
A3: 01 | B3: 行政办公区（含宿舍、食堂） | C3: 1.包括但不限于以下内容： （1）所有办公区域（含营业厅）的清洁保洁。如办公区域、会议室、接待室、饭堂、茶水间、洗手间、公共区域、楼梯、电梯、顶层天花板的清洁保洁工作。 （2）生活区域的清洁保洁。员工生活楼、宿舍楼、健身活动室及相关公共区域的保洁工作。 （3）生活垃圾的清除，包括办公场所、值班室、宿舍、厨房等产生的垃圾，生活垃圾必须每天清除运送至指定地点（具体数量及放置位置与使用部门协定）。
A4: 02 | B4: 道路（含运动场、门口广场、喷水池） | C4: 1.包括但不限于以下内容： （1）雨污水井口、明渠的清掏及喷药；果皮箱的清扫。 （2）道路、运动场的清扫冲洗。 （3）停车场及车库的卫生保洁。 2.服务要求： （1）路面（含运动场、广场）每周三次，保持路面洁净，无垃圾、积水、污迹。门口广场、喷水池（如有）、运动场地面每周清洗一次。 (2)室外场地、道路、停车场等保持清洁无积尘、纸屑、烟头等杂物。 (3)路灯、牌匾、宣传栏、标识标牌美观、整洁，无乱贴无污渍现象。
A5: 03 | B5: 生产车间 | C5: 包括但不限于以下内容：生产车间地面（包括地面以上3米的墙体蜘蛛网及灰尘、门窗保洁）每周两次，保持地面洁净，无垃圾，地面3米以内无蜘蛛网，门窗洁净。
A6: 04 | B6: 水面清洁 | C6: 包括但不限于以下内容：水面垃圾的打捞清除，保持水面清洁。（含粗格栅、细格栅、生化池、沉淀池/二沉池、配水井、贮泥池、消毒接触池、沉砂池、综合池等构筑物）。
A7: 05 | B7: 池壁清洁 | C7: 包括但不限于以下内容： （1）构筑物（含粗格栅、细格栅、格栅间、沉砂池、生化池、沉淀池/二沉池、综合池、配水井、贮泥池、污泥泵房、消毒接触池、计量槽、脱水机房等）的池壁（含出水明渠、紫外渠池壁）、护栏、楼梯、走道板、气管槽、斜管、出水堰板、标识标牌、除臭罩等的清洁。 服务要求： （1）粗、细格栅、污泥泵房、生物池、沉淀池、出水口、滤布滤池等构筑物的楼梯、护栏（栏杆）、走道板、气管槽、斜管、出水堰板、标识标牌、除臭罩以保持无积尘、蜘蛛网和鸟粪，确定拖、抹次数。 （2）生物池、沉淀池、紫外渠、出水明渠等构筑物池内壁清洗需每周1-2次，（具体以厂区需求为准）要求达到池壁干净，无积泥、青苔刮吸泥机支架应无蜘蛛网附着，虹吸管口无垃圾堆积，以免堵塞虹吸口。清洁集水槽及出水堰，要求无青苔、污泥附着。对于提标项目池壁清洗、水面清洁有临时需求的，中标单位根据厂区需求做好清洗或配合工作。 （3）招标人进行生物池、沉淀池、消毒接触池等构筑物放空大修时，中标人应负责安排保洁人员用水带进行清理和冲洗池底、池壁和设备上的污泥及青苔，并负责垃圾外运和承担相应的费用。冲洗设备时应按照招标人的要求进行。
A8: 06 | B8: 绿化养护 | C8: 1.绿化养护服务包括但不限于以下内容： （1）绿化的成活、修剪、施肥、浇水、除虫、清除杂草等日常养护。 （2）绿地保洁、草地铺沙平整（必须用疏草机对草地进行疏草）和植物老化的复壮等，绿化养护期内出现植物枯死情况，要求补种同规格同种类植物（花坛内的时花种养除外）。 （3）厂建绿化设施的日常维护、清洁。包括：绿地洒水及喷灌系统的清洁、损坏维修；绿地内排水沟、雨水井口保洁及清淤、损坏维修等。 2.服务要求：市第三、第四、第六及松山湖水厂共4个重点水厂绿化养护按照二级养护，其余区域均按照三级养护质量标准。
A9: 07 | B9: 除“四害”及白蚁防治 | C9: 1.除“四害”及白蚁防治服务包括但不限于以下内容： （1）高峰期5月至10月份（共6个月）每月不低于2次，其他月份每月不低于1次对行政区域和生产区域实施喷洒式灭蚊子、苍蝇、蟑螂工作，一般定在星期五17：30后实施（疫情期间或特殊情况下应服从公司要求增加服务次数）。同时中标人应安排周六在综合办公楼实施除“四害”工作，以免影响公司员工星期一工作。 （2）老鼠灭治工作开始后，前3个月每月施药2次，待灭鼠成效巩固之后每月施药一次（高峰期每月施药两次），及时清理死鼠。 （3）每半月至少1次对厂区所有区域进行白蚁检查，如有发现立即处理，期间若白蚁活动次数频繁或不达标的情况下，维护单位应配合我司作出相应调配进行施工服务，并无条件进行灭治，直至达标为止。 （4）害虫繁殖高峰期要加强消杀，保证效果。 （5）特殊情况下（例如“登革热”爆发期），应招标人要求加强除“四害”力度，保证效果。 （6）服务范围内收集动物尸体工作（含老鼠、蟑螂等收集清理工作），并将尸体无害化处理。
